Cogmind - Beta 12 @@@ ROGUE MODE // 2023.09.05 @ 03:36:39 Player: haldagan Result: Destroyed self via exploding Fusion Modulator Performance ------------- Evolutions (0) 0 Regions Visited (1) 200 Robots Destroyed (8) 40 Value Destroyed (233) 233 Prototype IDs (0) 0 Alien Tech Used (0) 0 Bonus (0) 0 TOTAL SCORE: 473 Bonus ------- None Cogmind --------- Core Integrity 0/250 Matter 290/300 Energy 76/125 System Corruption 0% Temperature Hot (212) Movement Walking (260) Ox2 Location -10/Materials Parts ------- > --- POWER (1) -------- Light Ion Engine > --- PROPULSION (2) --- Aluminum Leg > --- UTILITY (2) ------ Large Storage Unit Signal Interpreter > --- WEAPON (2) ------- Light Assault Rifle > --- INVENTORY (15) --- Small Storage Unit High-capacity Battery (250) Medium Matter Pod (100) Weapon Shielding EM Pulse Gun Grenade Launcher Peak State ------------ > --- POWER ------------ Light Ion Engine > --- PROPULSION ------- Light Treads Light Treads > --- UTILITY ---------- Large Storage Unit Signal Interpreter > --- WEAPON ----------- Small Laser Small Laser > --- INVENTORY -------- Light Ion Engine Aluminum Leg Aluminum Leg Small Storage Unit Medium Matter Pod Weapon Shielding EM Pulse Gun Light Assault Rifle Grenade Launcher Grenade Launcher [Rating: 8] Favorites ----------- Power Light Ion Engine Engine Light Ion Engine Propulsion Light Treads Treads Light Treads Leg Aluminum Leg Utility Signal Interpreter Storage Large Storage Unit Processor Signal Interpreter Protection Weapon Shielding Weapon Small Laser Energy Gun Small Laser Ballistic Gun Light Assault Rifle Launcher Grenade Launcher Build | -11 -10 ------- Run | Jun Mat Slots Evolved . | . . Power . | . . Propulsion . | . . Utility . | . . Weapon . | . . Parts Attached 14 | 6 8 Power 2 | 1 1 Engine 2 | 1 1 Core . | . . Reactor . | . . Propulsion 4 | 2 2 Treads 2 | 2 . Leg 2 | . 2 Wheel . | . . Hover . | . . Flight . | . . Utility 4 | 1 3 Device . | . . Storage 2 | 1 1 Processor 1 | . 1 Hackware . | . . Protection 1 | . 1 Artifact . | . . Weapon 4 | 2 2 Energy Gun 2 | 2 . Energy Cannon . | . . Ballistic Gun 1 | . 1 Ballistic Cannon . | . . Launcher 1 | . 1 Special Weapon . | . . Impact Weapon . | . . Slashing Weapon . | . . Piercing Weapon . | . . Special Melee Weapon . | . . Unidentified Prototypes . | . . Parts Lost 7 | . 7 Power 1 | . 1 Propulsion 3 | . 3 Utility . | . . Weapon 3 | . 3 Highest Loss Streak 7 | . 7 To Critical Strikes . | . . Average Slot Usage (%) 96 | . 96 Engine 13 | . 13 Treads 26 | . 26 Storage 14 | . 14 Processor 10 | . 10 Protection 3 | . 3 Energy Gun 26 | . 26 Naked Turns . | . . Heaviest Build 25 | 10 25 Greatest Support 40 | 40 40 Greatest Overweight (x) 1 | 1 1 Average Overweight (x) . | . . Largest Inventory Capacity 15 | 8 15 Average Capacity 11 | 7 12 Most Carried 11 | 7 11 Average Carried 7 | 3 7 Final Capacity 15 | 8 15 Final Carried 6 | 4 6 Class Distribution -------------------- 100% | Mutant Dominant Class ---------------- Mutant | -10/Materials Resources | -11 -10 ----------- Run | Jun Mat Matter Collected 427 | 218 209 Remotely . | . . Salvage Created 225 | . 225 Parts 17 | . 17 Haulers Intercepted . | . . Recyclers Shooed . | . . Parts Field Recycled . | . . Retrieved Matter . | . . Parts Self-Destructed . | . . Prevented . | . . Kills | -11 -10 ------- Run | Jun Mat Combat Hostiles Destroyed 8 | . 8 Guns 6 | . 6 AOE 2 | . 2 Classes Destroyed 2 | . 2 Swarmer 3 | . 3 Grunt 5 | . 5 Best Kill Streak 6 | . 6 Combat Bots Only 6 | . 6 Max Kills in Single Turn 1 | . 1 Gunslinging . | . . Exploded 1 | . 1 Melee . | . . Uniques/NPCs Destroyed . | . . Combat | -11 -10 -------- Run | Jun Mat Damage Taken 1020 | . 1020 Core 292 | . 292 Absorbed by Shields . | . . Core Remaining (%) 100 | 100 . Volleys Fired 29 | . 29 Largest 2 | . 2 Hottest 80 | . 80 Shots Fired 48 | . 48 Gun 46 | . 46 Cannon . | . . Launcher 2 | . 2 Special . | . . Kinetic 12 | . 12 Thermal 34 | . 34 Explosive 2 | . 2 Electromagnetic . | . . Robot Hit Streak 13 | . 13 Robot Miss Streak 3 | . 3 Penetration Max . | . . Secondary Targets 2 | . 2 Max Gunslinging Chain 1 | . 1 Shots Hit Robots 36 | . 36 Core Hits 20 | . 20 Critical Kills . | . . Critical Parts Destroyed . | . . Critical Strikes . | . . Melee Attacks . | . . Impact . | . . Slashing . | . . Piercing . | . . Sneak Attacks . | . . Combat Hostiles . | . . Follow-up Attacks . | . . Damage Inflicted 493 | . 493 Guns 377 | . 377 Cannons . | . . Explosions 116 | . 116 Melee . | . . Ramming . | . . Kinetic 78 | . 78 Thermal 299 | . 299 Explosive 116 | . 116 Electromagnetic . | . . Impact . | . . Slashing . | . . Piercing . | . . Highest Corruption . | . . Average Corruption . | . . Corruption Purged . | . . Corruption Blocked . | . . Overload Shots . | . . Overflow Damage 26 | . 26 Projectiles . | . . Explosions 26 | . 26 Melee . | . . Knockbacks . | . . Impact . | . . Kinetic . | . . Secondary . | . . Self-Inflicted Damage 257 | . 257 Shots 4 | . 4 Rammed . | . . Targets Rammed . | . . Kicked . | . . Crushed . | . . Highest Temperature 438 | . 438 Average Temperature 244 | . 244 Received Heat Transfer 414 | . 414 Effects 3 | . 3 Shutdowns 1 | . 1 Energy Bleed 1 | . 1 Damage (minor) 1 | . 1 Siege Activations . | . . Robots Corrupted . | . . Combat Hostiles . | . . Parts Fried . | . . Impact Corruptions . | . . Robots Melted . | . . Combat Hostiles . | . . Parts Melted . | . . Heat Transferred 675 | . 675 Parts Sabotaged . | . . Parts Stolen . | . . Parts Stripped . | . . Power Chain Reactions . | . . Missiles Intercepted . | . . Alert | -11 -10 ------- Run | Jun Mat Peak Influence 100 | . 100 Initial . | . . Average 15 | . 17 Maximum Alert Level . | . . Low Security (%) 100 | 100 100 Level 1 . | . . Level 2 . | . . Level 3 . | . . Level 4 . | . . Level 5 . | . . High Security . | . . Max Security . | . . Squads Dispatched 2 | . 2 Investigation 1 | . 1 Extermination . | . . Reinforcement 1 | . 1 Assault . | . . Garrison . | . . Intercept . | . . Searches Triggered . | . . Construction Impeded . | . . Haulers Reinforced . | . . Active Scanning Responses . | . . Cargo Convoy Interrupts . | . . Stealth | -11 -10 --------- Run | Jun Mat Distress Signals 2 | . 2 Communications Jammed . | . . Distress Signals . | . . Times Spotted 14 | . 14 Peak Tracking Total 7 | . 7 Tactical Retreats . | . . Traps | -11 -10 ------- Run | Jun Mat Traps Triggered 1 | . 1 Indirectly . | . . Trap Hack Attempts . | . . Triggered . | . . Disarmed . | . . Reprogrammed . | . . Reused . | . . Traps Extracted . | . . Installed . | . . Triggered . | . . Machines | -11 -10 ---------- Run | Jun Mat Machines Disabled 2 | . 2 Max in Single Turn 2 | . 2 Machines Repaired . | . . Machines Sabotaged . | . . Overloaded Fab Kills . | . . Hacking | -11 -10 --------- Run | Jun Mat Machines Accessed 1 | . 1 Terminals . | . . Fabricators . | . . Repair Stations . | . . Recycling Units 1 | . 1 Scanalyzers . | . . Garrison Access . | . . Total Hacks 1 | . 1 Successful 1 | . 1 Failed . | . . Catastrophic . | . . Database Lockouts . | . . Manual . | . . Terminals . | . . Fabricators . | . . Repair Stations . | . . Recycling Units 1 | . 1 Scanalyzers . | . . Garrison Access . | . . Terminal Hacks . | . . Fabricator Hacks . | . . Repair Station Hacks . | . . Recycling Unit Hacks 1 | . 1 Report Inventory 1 | . 1 Scanalyzer . | . . Garrison Access Hacks . | . . Unauthorized Hacks . | . . Terminals . | . . Fabricators . | . . Repair Stations . | . . Recycling Units . | . . Scanalyzers . | . . Garrison Access . | . . Data Cores Recovered . | . . Used . | . . Hacking Detections . | . . Full Trace Events . | . . Feedback Events . | . . Feedback Blocked . | . . Robot Schematics Acquired . | . . Robots Built . | . . Authchips . | . . Time . | . . Total Robot Build Rating . | . . Part Schematics Acquired . | . . Parts Built . | . . Authchips . | . . Time . | . . Total Part Build Rating . | . . Parts Repaired . | . . Time . | . . Parts Recycled . | . . Recycled Matter . | . . Retrieved Matter . | . . Retrieved Components . | . . Parts Scanalyzed . | . . Part Schematics Acquired . | . . Parts Damaged . | . . Bothacking | -11 -10 ------------ Run | Jun Mat Used RIF Installer . | . . Robots Hacked . | . . Non-combat . | . . Combat . | . . Robot Hacks Applied . | . . Relay Couplers Released . | . . Fabnet Peak Effective % . | . . Robots Rewired . | . . Allies Hacked . | . . Hacks Repelled . | . . Allies | -11 -10 -------- Run | Jun Mat Total Allies . | . . Largest Group . | . . Highest-Rated Group . | . . Highest-Rated Ally . | . . Total Orders . | . . Ally Attacks . | . . Total Damage . | . . Kills . | . . Allies Corrupted . | . . Allies Melted . | . . Intel | -11 -10 ------- Run | Jun Mat Robot Analysis Total . | . . Derelict Logs Recovered . | . . Drone Launches . | . . Drone Recoveries . | . . Exploration | -11 -10 ------------- Run | Jun Mat Turns Passed 530 | 70 460 Spaces Moved 268 | 40 228 Core 12 | 12 . Treads 255 | 28 227 Legs 1 | . 1 Wheels . | . . Hover . | . . Flight . | . . Fastest Speed 50 | 50 160 Average Speed 156 | 138 160 Slowest Speed 190 | 160 190 Overloaded Moves . | . . Propulsion Burnouts . | . . Robots Hopped . | . . Cave-ins Triggered . | . . Exploration Rate (%) 27 | 4 50 Regions Visited 1 Branch Regions . Pre-discovered Areas . | . . Known Exits Taken . | . . Unknown Exits Taken 1 | 1 . Scrap Searched . | . . Spaces Dug . | . . Terrain Destroyed 18 | . 18 Melee . | . . Projectile . | . . AOE 18 | . 18 Terrain Rammed . | . . Walls Destroyed . | . . Machines Disabled . | . . Actions | -11 -10 --------- Run | Jun Mat Total 331 | 55 276 Wait 3 | . 3 Move 267 | 39 228 Hop . | . . Pick Up 18 | 10 8 Fast Attach . | . . Attach 12 | 6 6 Detach . | . . Swap 2 | . 2 Drop . | . . Fire 29 | . 29 Melee . | . . Ram . | . . Kick . | . . Crush . | . . Escape Stasis . | . . Rewire . | . . Trap . | . . Miscellaneous . | . . Route ------- -11/Junkyard -10/Materials (discovered 2 exits: [*Mat] / *Min) History --------- Turn | Location | Event 25 | -11/Junkyard | Discovered new exit (range 16) 71 | -11/Junkyard | Entered Materials 269 | -10/Materials | Discovered new exit (range 16) 301 | -10/Materials | Build established: Mutant 319 | -10/Materials | Identified exit to Mines 513 | -10/Materials | Core integrity fell below 50% 521 | -10/Materials | Discovered new exit (range 8) 524 | -10/Materials | Core integrity fell below 20% 531 | -10/Materials | Destroyed self via exploding Fusion Modulator Last Messages --------------- 00504_ Critical hit (Burn: +37). 00506_ Lgt. Treads destroyed. 00510_ Sml. Laser destroyed. 00518_ G-47 Trooper destroyed. 00519_ Acquired 9 matter. 00521_ Overheating: Grenade Launcher damaged (-44). 00521_ Acquired 10 matter. 00521_ G-34 Mercenary destroyed. 00521_ EXIT=FOUND 00522_ Acquired 9 matter. 00523_ G-34 Mercenary destroyed. 00523_ Grenade Launcher destroyed. 00523_ Destroyed Grenade Launcher. 00529_ The unstable cave ceiling collapses. 00529_ Acquired 23 matter. 00531_ Fusion Modulator explodes. 00531_ Aluminum Leg destroyed. 00531_ Destroyed Aluminum Leg. 00531_ Fusion Modulator explodes. Map ----- +----------------------------------------------------+ | | | | | | | | | | | | | | | | | | | | | | | | | | | | | ?????????????????????????????????????????????????? | | ?????????????????????????????????????????????????? | | ?????????????????????????????????????????????????? | | ?????????????????????????????????????????????????? | | ?????????????????????###########?????????????????? | | ###################### #?????????????????? | | ; #?????????????????? | | ####################;; #?????????????????? | | ##########????????## #?????????????????? | | # #???????##;; = [ #?????????????????? | | # """ #???????# #?????????????????? | | # """"" #???????# < *[ @ #?????????????????? | | # """"" #???????# = #?????????????????? | | + """"" #? + ###?????????????????? | | # """ #? # !! ??????????????????? | | # #???????# !! ????????????????? | | # #???????# " ! T ??????????????? | | # #???????# "" #?????????????? | | ##########???????# "" u #?????????????? | | #????????????????# """ #?????????????? | | #????????????????# "" u #?????????????? | | #????????????????# ??"" r ????????????? | | ######???????????#???"" ????????????? | | ????????????" ???????????? | | ########?????????????? ^ ?????????????? | | #????????????????????? ???????????????? | | ####?????????????????? ?????????????????? | | "" #?????????????????? ????????????????????? | | R" # ???????????????? ??????????????????????? | | " # ?????????????????????????????????????????? | | # T ???????????????????????????????????????? | | # ??????????????????????????????????????? | | [# ???????????????????????????????????????? | | # ???????????????????????????????????????? | | # ?#?????????????????????????????????????? | | # ? #?????????????????????????????????????? | +----------------------------------------------------+ Best States ------------- Heat Dissipation 25 Energy Generation 10 Energy Capacity 125 Matter Stores 300 Matter Capacity 300 Sight Range 16 Terrain Scan Density 10 Weapon Shielding 33 Evasion (%) 40 Recoil Reduction 2 Item Schematics ----------------- None Robot Schematics ------------------ None Fabricated ------------ Nothing Alien Tech Used ----------------- None Achievements -------------- None Challenges ------------ None Game ------ Seed ChainLightningBlaster Manual? 0 Play Time 00:05:30 Cumulative 12.8 hours Start 2023.09.05 @ 03:31:51 End 2023.09.05 @ 03:36:39 Sessions 1 Manual Loads 0 Difficulty Rogue Special Mode None Game No. 15 Rogue 15 Adventurer 0 Explorer 0 Win Type - Total 0 Types 0/0/0/0/0/0/0/0/0 Lore% 18 Gallery% 20 Achievement% 16 Wizard Run 0 Options --------- ASCII 0 Keyboard 0 Movement Numpad Keybinds 0 Fullscreen 1 Font 16/SmallcapsGlow Map View 50x54 Tactical HUD 1 Map Filters NONE Filters NONE Steam 1 RUN: ae00a6fc-9e80-4f79-b92d-fb150713c5ca